bitfinex/quotes_SOLUSD_20251118
["timestamp","ask_amount","ask_price","bid_price","bid_amount"]
[1763427208162,9.31148114,131.37,131.3,19.10030883]
[1763427208163,9.31148114,131.35,131.3,19.10030883]
[1763427208342,0.72,131.4,131.31,19.10030883]
[1763427208540,9.31148114,131.37,131.31,19.76030883]
[1763427208776,9.31148114,131.37,131.33,9.78882769]
[1763427209145,9.31148114,131.38,131.33,10.44882769]
[1763427209351,0.72,131.39,131.33,19.76030883]
[1763427209557,9.31148114,131.38,131.33,19.76030883]
[1763427209766,9.31148114,131.37,131.33,10.44882769]
[1763427209940,9.31148114,131.34,131.3,9.97148114]
[1763427210252,0.72,131.38,131.32,9.78882769]
[1763427210444,9.31148114,131.35,131.31,0.66]
[1763427210653,9.31148114,131.35,131.31,9.78882769]
[1763427210851,5.9638459,131.35,131.31,9.78882769]
[1763427211155,5.9638459,131.37,131.32,6.6238459]
[1763427211358,5.9638459,131.34,131.28,28.56978769]
[1763427211565,5.9638459,131.34,131.31,9.78882769]
[1763427211749,5.9638459,131.35,131.31,9.78882769]
[1763427211951,0.72,131.37,131.31,6.6238459]
[1763427212169,0.72,131.37,131.31,5.9638459]
[1763427212337,18.12096,131.41,131.32,0.66]
[1763427212650,5.9638459,131.36,131.33,9.78882769]
[1763427212843,5.9638459,131.36,131.32,9.78882769]
[1763427213040,5.9638459,131.35,131.32,9.78882769]
[1763427213257,0.72,131.38,131.32,9.78882769]
[1763427213457,5.9638459,131.37,131.32,15.75267359]
[1763427213852,5.9638459,131.35,131.32,9.78882769]
[1763427214268,5.9638459,131.35,131.3,9.78882769]
[1763427214443,5.9638459,131.34,131.3,0.66]
[1763427215149,5.9638459,131.35,131.3,6.6238459]
[1763427215348,5.9638459,131.36,131.31,5.9638459]
[1763427215851,5.9638459,131.36,131.32,9.78882769]
[1763427216172,5.9638459,131.36,131.32,10.44882769]
[1763427216479,5.9638459,131.39,131.34,15.75267359]
[1763427216663,5.9638459,131.44,131.33,0.66]
[1763427216664,5.9638459,131.4,131.33,0.66]
[1763427216866,5.9638459,131.4,131.36,9.78882769]
[1763427217382,5.9638459,131.39,131.34,0.66]
[1763427217587,5.9638459,131.37,131.32,9.78882769]
[1763427217763,18.12096,131.43,131.32,16.41267359]
[1763427218081,5.9638459,131.37,131.33,9.78882769]
[1763427219254,5.9638459,131.38,131.34,0.66]
[1763427219756,6.6838459,131.37,131.34,9.78882769]
[1763427219955,6.6838459,131.37,131.33,5.9638459]
[1763427220162,5.9638459,131.37,131.32,15.75267359]
[1763427220364,5.9638459,131.37,131.33,0.66]
[1763427220951,5.9638459,131.44,131.34,15.75267359]
[1763427220952,5.9638459,131.39,131.34,15.75267359]
[1763427221153,5.9638459,131.4,131.36,9.78882769]
[1763427221579,5.9638459,131.4,131.3,4.72]
[1763427221862,18.12096,131.41,131.35,9.78882769]
[1763427221863,6.6838459,131.39,131.35,9.78882769]
[1763427222895,6.6838459,131.39,131.35,5.9638459]
[1763427222896,0.72,131.39,131.35,5.9638459]
[1763427223658,0.72,131.43,131.37,15.75267359]
[1763427223854,6.6838459,131.43,131.39,9.78882769]
[1763427224082,5.9638459,131.41,131.36,5.9638459]
[1763427224265,0.72,131.42,131.36,9.78882769]
[1763427224572,24.0848059,131.44,131.33,0.72]
[1763427224573,5.9638459,131.39,131.34,15.75267359]
[1763427225076,5.9638459,131.4,131.35,5.9638459]
[1763427225460,6.6838459,131.4,131.35,5.9638459]
[1763427226071,18.12096,131.41,131.3,5.46161462]
[1763427226072,5.9638459,131.41,131.37,9.78882769]
[1763427226271,24.0848059,131.42,131.37,9.78882769]
[1763427226456,18.12096,131.42,131.37,15.75267359]
[1763427226652,24.8048059,131.42,131.37,16.47267359]
[1763427226882,5.9638459,131.41,131.37,15.75267359]
[1763427227393,5.9638459,131.41,131.37,16.47267359]
[1763427227595,24.0848059,131.42,131.38,0.72]
[1763427227790,24.8048059,131.42,131.37,16.47267359]
[1763427228302,6.6838459,131.42,131.37,16.47267359]
[1763427229063,18.12096,131.49,131.37,9.78882769]
[1763427229267,18.12096,131.49,131.39,15.75267359]
[1763427229268,5.9638459,131.44,131.39,15.75267359]
[1763427229795,5.9638459,131.52,131.41,15.75267359]
[1763427230087,5.9638459,131.46,131.42,9.78882769]
[1763427230695,5.9638459,131.46,131.42,0.72]
[1763427230993,6.6838459,131.46,131.41,9.78882769]
[1763427231336,5.9638459,131.42,131.38,9.78882769]
[1763427231665,5.9638459,131.4,131.37,9.78882769]
[1763427231878,5.9638459,131.39,131.34,5.9638459]
[1763427232067,5.9638459,131.4,131.35,15.75267359]
[1763427232607,5.9638459,131.41,131.37,15.75267359]
[1763427232905,5.9638459,131.42,131.37,15.75267359]
[1763427233103,5.9638459,131.41,131.37,9.78882769]
[1763427233306,5.9638459,131.39,131.34,15.75267359]
[1763427233473,5.9638459,131.38,131.34,9.78882769]
[1763427233880,5.9638459,131.38,131.34,10.50882769]
[1763427234081,18.12096,131.41,131.35,0.72]
[1763427234301,5.9638459,131.39,131.34,5.9638459]
[1763427234998,5.9638459,131.39,131.36,9.78882769]
[1763427235214,5.9638459,131.38,131.33,5.9638459]
[1763427235586,6.6838459,131.38,131.33,0.72]
[1763427235815,5.9638459,131.36,131.34,9.78882769]
[1763427235989,5.9638459,131.37,131.34,9.78882769]
[1763427236420,6.6838459,131.38,131.34,9.78882769]
[1763427236796,5.9638459,131.36,131.31,10.50882769]
[1763427237015,5.9638459,131.36,131.31,16.47267359]
[1763427237217,5.9638459,131.36,131.32,0.72]
[1763427237514,18.84096,131.41,131.33,15.75267359]
[1763427237716,5.9638459,131.39,131.34,5.9638459]
[1763427237905,5.9638459,131.4,131.36,9.78882769]
[1763427238313,5.9638459,131.39,131.33,6.3573212]
[1763427238507,5.9638459,131.39,131.35,9.78882769]
[1763427238832,5.9638459,131.38,131.35,9.78882769]
[1763427239018,5.9638459,131.38,131.35,10.50882769]
[1763427239389,5.9638459,131.38,131.35,9.78882769]
[1763427239591,6.6838459,131.38,131.35,9.78882769]
[1763427239808,0.72,131.38,131.35,9.78882769]
[1763427239997,18.12096,131.42,131.35,15.75267359]
[1763427240197,6.6838459,131.41,131.36,5.9638459]
[1763427240401,67.02118346,131.52,131.38,9.78882769]
[1763427240402,5.9638459,131.42,131.38,9.78882769]
[1763427240694,5.9638459,131.52,131.4,9.78882769]
[1763427240695,0.72,131.51,131.4,9.78882769]
[1763427240890,0.72,131.51,131.38,9.78882769]
[1763427240891,5.9638459,131.44,131.38,9.78882769]
[1763427241113,5.9638459,131.44,131.4,9.78882769]
[1763427241312,2.0,131.53,131.4,9.78882769]
[1763427241313,0.72,131.47,131.42,9.78882769]
[1763427241507,5.9638459,131.46,131.4,9.78882769]
[1763427241819,18.12096,131.46,131.42,9.78882769]
[1763427242007,24.8048059,131.46,131.42,9.78882769]
[1763427242202,0.72,131.46,131.42,15.75267359]
[1763427242404,5.9638459,131.46,131.42,5.9638459]
[1763427242617,24.8048059,131.48,131.44,9.78882769]
[1763427242900,24.8048059,131.48,131.41,0.76097709]
[1763427242901,0.72,131.45,131.41,9.78882769]
[1763427243112,6.6838459,131.45,131.41,9.78882769]
[1763427243315,6.6838459,131.45,131.4,5.9638459]
[1763427243495,0.72,131.44,131.4,5.9638459]
[1763427244097,5.9638459,131.46,131.41,5.9638459]
[1763427244298,5.9638459,131.45,131.4,6.6838459]
[1763427244724,6.6838459,131.44,131.39,5.9638459]
[1763427244898,6.6838459,131.43,131.39,15.75267359]
[1763427245101,24.0848059,131.45,131.4,15.75267359]
[1763427245314,6.6838459,131.46,131.42,15.75267359]
[1763427245515,5.9638459,131.48,131.43,5.9638459]
[1763427245821,5.9638459,131.47,131.42,5.9638459]
[1763427246041,6.6838459,131.47,131.44,9.78882769]
[1763427246212,5.9638459,131.45,131.39,12.3211671]
[1763427246415,5.9638459,131.43,131.39,9.78882769]
[1763427246810,18.84096,131.46,131.4,6.6838459]
[1763427247019,6.6838459,131.45,131.4,5.9638459]
[1763427247232,5.9638459,131.42,131.38,9.78882769]
[1763427247402,5.9638459,131.41,131.38,9.78882769]
[1763427247922,5.9638459,131.41,131.36,9.78882769]
[1763427247923,0.72,131.4,131.36,9.78882769]
[1763427248114,6.6838459,131.41,131.36,16.47267359]
[1763427248312,0.72,131.41,131.38,9.78882769]
[1763427249028,0.72,131.44,131.38,16.47267359]
[1763427249219,5.9638459,131.43,131.38,22.10999479]
[1763427249424,5.9638459,131.42,131.38,9.78882769]
[1763427249623,24.0848059,131.43,131.38,16.47267359]
[1763427249930,5.9638459,131.45,131.41,9.78882769]
[1763427250230,5.9638459,131.45,131.42,0.72]
[1763427250732,6.6838459,131.44,131.41,9.78882769]
[1763427250899,5.9638459,131.45,131.4,5.9638459]
[1763427251099,5.9638459,131.46,131.42,9.78882769]
[1763427251310,5.9638459,131.48,131.44,9.78882769]
[1763427251810,6.6438459,131.48,131.44,10.49882769]
[1763427252516,5.9638459,131.47,131.44,9.78882769]
[1763427253127,5.9638459,131.47,131.44,10.49882769]
[1763427253326,5.9638459,131.47,131.42,7.09966161]
[1763427253527,5.9638459,131.44,131.42,9.78882769]
[1763427253729,5.9638459,131.44,131.4,9.78882769]
[1763427253913,0.68,131.46,131.4,16.46267359]
[1763427254117,5.9638459,131.44,131.41,0.71]
[1763427254429,5.9638459,131.44,131.4,9.78882769]
[1763427254609,5.9638459,131.44,131.41,0.71]
[1763427254804,5.9638459,131.44,131.4,10.49882769]
[1763427256117,0.68,131.46,131.4,9.78882769]
[1763427256407,5.9638459,131.44,131.4,15.75267359]
[1763427256908,5.9638459,131.44,131.4,16.46267359]
[1763427257329,0.68,131.46,131.4,10.49882769]
[1763427257520,5.9638459,131.44,131.4,10.49882769]
[1763427257723,5.9638459,131.46,131.42,9.78882769]
[1763427257927,5.9638459,131.47,131.42,15.75267359]
[1763427258227,5.9638459,131.45,131.42,10.49882769]
[1763427258420,120.82096,131.51,131.41,9.78882769]
[1763427258421,5.9638459,131.44,131.41,9.78882769]
[1763427258809,5.9638459,131.43,131.39,16.8984893]
[1763427259039,5.9638459,131.43,131.39,10.50882769]
[1763427259238,5.9638459,131.43,131.41,9.78882769]
[1763427259444,5.9638459,131.44,131.41,9.78882769]
[1763427259650,0.67,131.48,131.43,9.78882769]
[1763427259822,5.9638459,131.45,131.43,9.78882769]
[1763427260533,0.67,131.48,131.43,9.78882769]
[1763427260833,5.9638459,131.45,131.43,9.78882769]
[1763427262835,120.82096,131.51,131.44,0.72]
[1763427262836,121.49096,131.51,131.44,0.72]
[1763427263162,5.9638459,131.46,131.44,0.72]
[1763427263314,5.9638459,131.47,131.44,0.72]
[1763427263521,5.9638459,131.48,131.45,9.78882769]
[1763427263864,0.67,131.5,131.45,9.78882769]
[1763427264144,5.9638459,131.48,131.44,9.78882769]
[1763427264320,5.9638459,131.48,131.45,0.72]
[1763427265166,5.9638459,131.49,131.45,0.72]
[1763427266178,5.9638459,131.5,131.46,9.78882769]
[1763427266343,5.9638459,131.51,131.47,9.78882769]
[1763427266761,6.6338459,131.51,131.47,9.78882769]
[1763427267362,5.9638459,131.49,131.45,16.1784893]
[1763427267559,0.67,131.5,131.45,10.50882769]
[1763427267560,5.9638459,131.47,131.45,10.50882769]
[1763427267765,5.9638459,131.47,131.46,0.72]
[1763427268352,5.9638459,131.47,131.43,22.1423352]
[1763427268561,5.9638459,131.47,131.43,16.1784893]
[1763427268762,5.9638459,131.45,131.42,16.1784893]
[1763427268968,0.67,131.46,131.42,9.78882769]
[1763427268969,5.9638459,131.44,131.42,9.78882769]
[1763427269470,5.9638459,131.45,131.42,10.50882769]
[1763427269649,5.9638459,131.43,131.39,9.78882769]
[1763427269846,0.67,131.44,131.39,10.50882769]
[1763427270047,5.9638459,131.41,131.38,6.38966161]
[1763427270264,5.9638459,131.39,131.35,6.38966161]
[1763427270565,5.9638459,131.37,131.36,9.78882769]
[1763427270769,9.33978291,131.38,131.35,6.38966161]
[1763427270970,9.33978291,131.38,131.36,9.78882769]
[1763427271270,9.33978291,131.38,131.35,7.10966161]
[1763427271481,9.33978291,131.38,131.36,9.78882769]
[1763427271842,18.12096,131.44,131.38,9.78882769]
[1763427272046,9.33978291,131.4,131.38,9.78882769]
[1763427272247,0.67,131.43,131.36,9.78882769]
[1763427272248,9.33978291,131.39,131.36,9.78882769]
[1763427272550,9.33978291,131.39,131.36,16.8984893]
[1763427272752,0.67,131.45,131.38,9.78882769]
[1763427273062,9.33978291,131.41,131.38,9.78882769]
[1763427273568,9.33978291,131.39,131.37,9.78882769]
[1763427273774,9.33978291,131.38,131.35,6.38966161]
[1763427273958,9.33978291,131.36,131.34,6.38966161]
[1763427274154,9.33978291,131.36,131.34,9.78882769]
[1763427274363,9.33978291,131.35,131.34,9.78882769]
[1763427274955,0.67,131.39,131.34,10.50882769]
[1763427274956,9.33978291,131.36,131.34,10.50882769]
[1763427275150,0.67,131.39,131.34,10.50882769]
[1763427275473,9.33978291,131.36,131.34,10.50882769]
[1763427275876,9.33978291,131.36,131.34,9.78882769]
[1763427276479,0.67,131.43,131.36,9.78882769]
[1763427276648,9.33978291,131.4,131.36,9.78882769]
[1763427276847,0.67,131.45,131.37,7.10966161]
[1763427277163,9.33978291,131.41,131.39,9.78882769]
[1763427277474,10.00978291,131.4,131.36,6.38966161]
[1763427277669,9.33978291,131.38,131.36,9.78882769]
[1763427277853,9.33978291,131.38,131.36,10.50882769]
[1763427278769,18.12096,131.46,131.36,10.50882769]
[1763427278770,9.33978291,131.39,131.36,10.50882769]
[1763427279470,9.33978291,131.39,131.37,0.72]
[1763427279673,9.33978291,131.38,131.35,9.78882769]
[1763427279850,9.33978291,131.37,131.35,16.8984893]
[1763427280350,9.33978291,131.37,131.36,0.72]
[1763427281257,9.33978291,131.37,131.35,16.8984893]
[1763427281469,0.67,131.41,131.36,0.72]
[1763427281674,9.33978291,131.37,131.36,0.72]
[1763427282876,9.33978291,131.37,131.31,22.9734841]
[1763427282877,9.99978291,131.37,131.34,6.38966161]
[1763427283059,9.33978291,131.35,131.32,9.78882769]
[1763427283255,9.33978291,131.33,131.32,9.78882769]
[1763427283763,9.33978291,131.33,131.3,6.38966161]
[1763427283764,9.99978291,131.33,131.3,6.38966161]
[1763427283965,27.46074291,131.4,131.27,7.25966161]
[1763427283966,9.33978291,131.31,131.27,7.25966161]
[1763427284278,9.33978291,131.28,131.27,10.65882769]
[1763427285287,9.33978291,131.32,131.28,9.78882769]
[1763427285578,9.33978291,131.3,131.29,10.45882769]
[1763427285778,18.12096,131.37,131.3,9.78882769]
[1763427285955,9.33978291,131.32,131.3,10.45882769]
[1763427286154,9.33978291,131.32,131.31,0.67]
[1763427286760,9.33978291,131.33,131.31,10.45882769]
[1763427287279,9.33978291,131.32,131.3,9.78882769]
[1763427287479,9.33978291,131.31,131.3,9.78882769]
[1763427287783,9.33978291,131.31,131.29,0.67]
[1763427287969,9.33978291,131.3,131.29,10.45882769]
[1763427288284,9.33978291,131.3,131.27,0.87]
[1763427288575,9.33978291,131.29,131.28,9.78882769]
[1763427289076,9.33978291,131.3,131.29,9.78882769]
[1763427289379,9.33978291,131.3,131.27,0.2]
[1763427289552,9.33978291,131.3,131.29,9.78882769]
[1763427289962,9.33978291,131.3,131.29,10.45882769]
[1763427290359,9.33978291,131.3,131.27,9.98882769]
[1763427290558,0.66,131.3,131.27,9.98882769]
[1763427290768,9.33978291,131.28,131.27,9.98882769]
[1763427294081,9.99978291,131.28,131.27,0.2]
[1763427294768,37.35913164,131.4,131.27,0.2]
[1763427294769,6.35320829,131.43,131.27,0.87]
[1763427294972,9.33978291,131.4,131.29,9.78882769]
[1763427295160,9.33978291,131.32,131.28,10.45882769]
[1763427295366,9.33978291,131.32,131.29,0.67]
[1763427295670,9.33978291,131.32,131.28,10.45882769]
[1763427295988,9.33978291,131.32,131.29,0.67]
[1763427296368,9.33978291,131.34,131.3,9.78882769]
[1763427296573,18.78096,131.37,131.3,9.78882769]
[1763427296574,9.33978291,131.33,131.3,9.78882769]
[1763427296877,18.12096,131.37,131.29,9.78882769]
[1763427296878,9.33978291,131.31,131.29,9.78882769]
[1763427297062,9.33978291,131.31,131.27,9.98882769]
[1763427297378,9.33978291,131.31,131.28,0.67]
[1763427298389,9.33978291,131.3,131.27,0.2]
[1763427298688,9.33978291,131.3,131.27,0.87]
[1763427299283,9.33978291,131.28,131.27,0.2]
[1763427299582,0.66,131.32,131.27,0.87]
[1763427299792,9.33978291,131.31,131.27,0.87]
[1763427299992,9.33978291,131.3,131.27,0.87]
[1763427300487,9.33978291,131.31,131.27,9.98882769]
[1763427300794,9.33978291,131.28,131.27,0.2]
[1763427300993,9.99978291,131.28,131.27,0.2]
[1763427301662,0.66,131.28,131.27,0.2]
[1763427301978,28.12074291,131.28,131.2,9.78882769]
[1763427302181,9.33978291,131.24,131.19,9.33978291]
[1763427302376,9.33978291,131.25,131.22,9.78882769]
[1763427302689,0.66,131.3,131.24,9.78882769]
[1763427302890,9.33978291,131.27,131.24,9.78882769]
[1763427303088,9.33978291,131.26,131.24,9.78882769]
[1763427303304,9.33978291,131.25,131.19,9.78882769]
[1763427303484,9.33978291,131.21,131.19,9.78882769]
[1763427303783,9.33978291,131.2,131.19,0.67]
[1763427303985,9.33978291,131.22,131.21,9.78882769]
[1763427304173,0.66,131.27,131.21,9.78882769]
[1763427304174,9.33978291,131.23,131.21,9.78882769]
[1763427304576,9.33978291,131.24,131.19,9.78882769]
[1763427304772,9.33978291,131.25,131.23,9.78882769]
[1763427304990,0.66,131.3,131.23,9.78882769]
[1763427304991,9.33978291,131.3,131.25,9.78882769]
[1763427305191,0.66,131.32,131.27,9.78882769]
[1763427305487,9.33978291,131.32,131.27,9.33978291]
[1763427305687,9.33978291,131.33,131.29,9.78882769]
[1763427306076,9.33978291,131.33,131.31,9.78882769]
[1763427306278,9.99978291,131.32,131.29,9.78882769]
[1763427306478,9.33978291,131.3,131.29,9.78882769]
[1763427306688,9.33978291,131.3,131.23,6.39224888]
[1763427306689,9.33978291,131.3,131.23,0.67]
[1763427306898,0.66,131.29,131.24,9.78882769]
[1763427307073,9.33978291,131.26,131.24,9.78882769]
[1763427307275,9.33978291,131.26,131.22,10.45882769]
[1763427307490,0.66,131.29,131.23,0.67]
[1763427307679,9.33978291,131.27,131.23,0.67]
[1763427307991,9.33978291,131.26,131.23,0.67]
[1763427308867,18.12096,131.31,131.24,9.78882769]
[1763427309066,9.33978291,131.27,131.24,9.78882769]
[1763427309587,9.33978291,131.28,131.26,9.78882769]
[1763427309801,18.12096,131.31,131.26,9.78882769]
[1763427309802,9.33978291,131.27,131.26,9.78882769]
[1763427309980,9.33978291,131.27,131.23,9.78882769]
[1763427310509,9.33978291,131.24,131.22,9.78882769]
[1763427310711,9.33978291,131.23,131.18,6.39224888]
[1763427310876,0.66,131.25,131.17,0.67]
[1763427311073,9.33978291,131.22,131.17,16.40203179]
[1763427311290,9.33978291,131.21,131.17,7.06224888]
[1763427311486,9.33978291,131.21,131.18,9.78882769]
[1763427311803,9.99978291,131.23,131.18,26.20085948]
[1763427312008,9.33978291,131.23,131.2,9.78882769]
[1763427312301,0.71,131.23,131.19,19.1286106]
[1763427312493,0.71,131.27,131.2,0.68]
[1763427312700,9.33978291,131.24,131.2,0.68]
[1763427312903,9.33978291,131.24,131.19,25.52085948]
[1763427313083,9.33978291,131.24,131.2,0.68]
[1763427313279,10.04978291,131.24,131.19,25.52085948]
[1763427313491,9.33978291,131.23,131.19,25.52085948]
[1763427313677,9.33978291,131.23,131.2,6.39224888]
[1763427313911,9.33978291,131.21,131.19,9.78882769]
[1763427314081,9.33978291,131.2,131.19,9.78882769]
[1763427314279,9.33978291,131.2,131.18,9.78882769]
[1763427314484,9.33978291,131.2,131.17,6.39224888]
[1763427314987,10.04978291,131.2,131.17,6.39224888]
[1763427315187,9.33978291,131.31,131.19,25.52085948]
[1763427315521,9.33978291,131.24,131.22,9.78882769]
[1763427315804,18.83096,131.28,131.21,19.1286106]
[1763427315805,9.33978291,131.26,131.21,19.1286106]
[1763427316016,9.33978291,131.26,131.22,9.33978291]
[1763427316311,9.33978291,131.26,131.22,9.78882769]
[1763427316603,9.33978291,131.27,131.23,10.01978291]
[1763427316779,10.04978291,131.28,131.23,10.01978291]
[1763427316978,10.04978291,131.28,131.23,0.68]
[1763427316979,9.33978291,131.27,131.23,0.68]
[1763427317179,0.71,131.27,131.22,19.1286106]
[1763427317398,0.71,131.27,131.22,19.8086106]
[1763427317399,10.04978291,131.27,131.22,19.8086106]
[1763427317598,10.04978291,131.27,131.23,0.68]
[1763427317814,27.46074291,131.31,131.23,10.01978291]
[1763427317815,9.33978291,131.28,131.23,10.01978291]
[1763427318023,9.33978291,131.27,131.23,0.68]
[1763427318804,9.33978291,131.29,131.25,9.78882769]
[1763427319007,18.81096,131.31,131.25,26.20085948]
[1763427319211,0.69,131.34,131.29,9.78882769]
[1763427319504,9.33978291,131.4,131.28,9.33978291]
[1763427319505,9.33978291,131.32,131.28,9.78882769]
[1763427319810,9.33978291,131.32,131.28,10.46882769]
[1763427319982,9.33978291,131.32,131.28,16.86107657]
[1763427320311,10.02978291,131.32,131.28,9.78882769]
[1763427320604,9.33978291,131.32,131.28,10.46882769]
[1763427320810,9.33978291,131.32,131.28,16.86107657]
[1763427321018,0.69,131.34,131.28,9.78882769]
[1763427321019,9.33978291,131.3,131.28,9.78882769]
[1763427321393,0.69,131.31,131.25,10.01978291]
[1763427321394,0.69,131.29,131.25,9.78882769]
[1763427321603,18.12096,131.33,131.25,9.78882769]
[1763427321793,9.33978291,131.31,131.27,9.78882769]
[1763427322298,9.33978291,131.29,131.27,16.18107657]
[1763427322495,9.33978291,131.29,131.25,9.78882769]
[1763427322693,9.33978291,131.29,131.25,16.86107657]
[1763427323484,9.33978291,131.31,131.27,9.78882769]
[1763427323684,9.33978291,131.32,131.29,9.78882769]
[1763427323908,27.46074291,131.33,131.29,9.78882769]
[1763427324106,9.33978291,131.32,131.29,9.78882769]
[1763427324506,18.12096,131.35,131.31,9.78882769]
[1763427324507,10.02978291,131.35,131.31,9.78882769]
[1763427325093,10.02978291,131.35,131.31,10.46882769]
[1763427325496,10.02978291,131.35,131.31,9.78882769]
[1763427325813,9.33978291,131.36,131.33,9.78882769]
[1763427326113,9.33978291,131.4,131.32,9.78882769]
[1763427326114,9.33978291,131.35,131.32,9.78882769]
[1763427326287,9.33978291,131.35,131.32,16.18107657]
[1763427326804,9.33978291,131.38,131.34,16.18107657]
[1763427327004,11.33978291,131.49,131.34,16.18107657]
[1763427327005,9.33978291,131.39,131.36,9.78882769]
[1763427327711,9.33978291,131.4,131.36,10.46882769]
[1763427327906,9.33978291,131.4,131.36,16.86107657]
[1763427328114,9.33978291,131.39,131.36,9.78882769]
[1763427328409,9.33978291,131.38,131.36,9.78882769]
[1763427328811,10.02978291,131.37,131.34,9.78882769]
[1763427329000,10.02978291,131.37,131.34,16.18107657]
[1763427329318,9.33978291,131.37,131.34,16.18107657]
[1763427329513,9.33978291,131.37,131.34,9.78882769]
[1763427329691,18.12096,131.4,131.33,9.78882769]
[1763427329692,10.02978291,131.36,131.33,9.78882769]
[1763427330207,9.33978291,131.34,131.32,16.18107657]
[1763427330409,9.33978291,131.33,131.3,9.78882769]
[1763427330916,5.96383589,131.36,131.32,9.78882769]
[1763427331115,6.65383589,131.36,131.32,16.18107657]
[1763427331428,5.96383589,131.38,131.34,9.78882769]
[1763427331615,6.65383589,131.39,131.34,22.14491246]
[1763427331923,6.65383589,131.38,131.34,9.78882769]
[1763427332302,5.96383589,131.37,131.34,9.78882769]
[1763427332608,6.65383589,131.38,131.34,9.78882769]
[1763427332927,5.96383589,131.37,131.34,9.78882769]
[1763427333099,6.65383589,131.37,131.34,9.78882769]
[1763427333587,5.96383589,131.37,131.34,9.78882769]
[1763427333792,0.69,131.39,131.34,9.78882769]
[1763427333990,5.96383589,131.38,131.34,9.78882769]
[1763427334195,5.96383589,131.37,131.34,9.78882769]
[1763427334406,5.96383589,131.35,131.31,16.18107657]
[1763427334698,0.69,131.4,131.31,9.78882769]
[1763427334900,5.96383589,131.34,131.3,15.75266358]
[1763427335105,5.96383589,131.35,131.3,15.75266358]
[1763427335311,5.96383589,131.32,131.3,9.78882769]
[1763427335627,5.96383589,131.35,131.3,6.64383589]
[1763427335933,5.96383589,131.32,131.29,9.78882769]
[1763427336522,5.96383589,131.33,131.29,10.46882769]
[1763427336728,0.69,131.34,131.29,17.19433621]
[1763427336729,6.65383589,131.34,131.29,17.19433621]
[1763427336895,6.65383589,131.34,131.29,23.58658509]
[1763427337303,5.96383589,131.34,131.29,22.90658509]
[1763427337526,6.65383589,131.34,131.29,23.58658509]
[1763427337828,5.96383589,131.34,131.29,23.58658509]
[1763427338001,6.65383589,131.34,131.29,22.82491246]
[1763427338506,6.65383589,131.34,131.29,16.86107657]
[1763427338707,6.65383589,131.34,131.29,22.82491246]
[1763427338923,0.69,131.33,131.29,22.82491246]
[1763427339125,5.96383589,131.34,131.3,0.68]
[1763427340728,6.65383589,131.34,131.3,0.68]
[1763427341196,102.7,131.41,131.3,0.68]
[1763427341197,5.96383589,131.36,131.32,9.78882769]
[1763427341623,5.96383589,131.35,131.32,9.78882769]
[1763427341806,6.65383589,131.36,131.32,0.72]
[1763427342326,5.96383589,131.35,131.31,16.18107657]
[1763427342538,6.68383589,131.35,131.31,9.78882769]
[1763427342718,5.96383589,131.35,131.31,10.50882769]
[1763427343110,6.68383589,131.35,131.31,10.50882769]
[1763427343311,5.96383589,131.33,131.3,9.78882769]
[1763427343518,5.96383589,131.33,131.29,9.78882769]
[1763427343826,0.72,131.36,131.3,0.72]
[1763427344019,5.96383589,131.34,131.3,0.72]
[1763427344502,6.68383589,131.34,131.3,0.72]
[1763427345841,0.72,131.33,131.29,15.75266358]
[1763427346133,6.68383589,131.34,131.29,16.47266358]
[1763427346458,5.96383589,131.33,131.29,6.68383589]
[1763427346725,24.08479589,131.35,131.3,6.68383589]
[1763427346904,24.80479589,131.35,131.32,9.78882769]
[1763427347106,5.96383589,131.34,131.32,9.78882769]
[1763427347333,24.80479589,131.35,131.31,9.78882769]
[1763427347752,0.72,131.34,131.31,9.78882769]
[1763427348460,6.68383589,131.34,131.3,9.78882769]
[1763427348755,6.68383589,131.34,131.3,10.50882769]
[1763427349052,5.96383589,131.34,131.3,9.78882769]
[1763427349256,6.68383589,131.34,131.3,10.50882769]
[1763427349466,6.68383589,131.34,131.3,9.78882769]
[1763427349670,6.68383589,131.34,131.3,5.96383589]
[1763427350238,0.72,131.33,131.29,15.75266358]
[1763427350531,5.96383589,131.3,131.27,6.39224888]
[1763427350734,5.96383589,131.28,131.24,22.14491246]
[1763427350960,5.96383589,131.27,131.22,6.68383589]
[1763427351161,18.12096,131.29,131.19,7.11224888]
[1763427351162,5.96383589,131.23,131.19,7.11224888]
[1763427351351,5.96383589,131.22,131.19,7.11224888]
[1763427351656,5.96383589,131.24,131.2,9.78882769]
[1763427352061,6.68383589,131.24,131.2,9.78882769]
[1763427352441,5.96383589,131.25,131.2,16.47266358]
[1763427352759,6.68383589,131.25,131.2,22.86491246]
[1763427352949,5.96383589,131.25,131.22,9.78882769]
[1763427353462,6.68383589,131.25,131.22,9.78882769]